bitfinex/quotes_ETHUSD_20250126
["timestamp","ask_amount","ask_price","bid_price","bid_amount"]
[1737913172897,3.0049,3327.9,3327.3,3.90314037]
[1737913173105,0.0641982,3327.5,3327.3,3.90314037]
[1737913173310,3.0049,3327.9,3327.3,3.90314037]
[1737913173505,0.06462521,3327.4,3327.3,3.90314037]
[1737913173711,3.0049,3327.9,3327.3,3.90314037]
[1737913174239,0.06465405,3327.8,3327.3,3.90314037]
[1737913175022,0.06465405,3327.8,3327.4,0.11531037]
[1737913176215,3.06965405,3327.8,3327.4,0.11531037]
[1737913176383,3.06965405,3327.8,3327.5,0.11531037]
[1737913177787,0.06465405,3327.8,3327.5,0.11531037]
[1737913178012,0.06465405,3327.8,3327.4,3.00533]
[1737913178211,6.00481,3328.0,3327.4,3.00533]
[1737913178524,3.76163,3328.1,3327.4,3.00533]
[1737913178525,0.7569,3328.1,3327.5,3.00524]
[1737913178730,0.06467135,3327.9,3327.6,0.7824]
[1737913178930,6.0047,3328.2,3327.6,0.7824]
[1737913179228,0.06467135,3327.8,3327.6,0.7824]
[1737913179522,6.0047,3328.2,3327.6,0.7824]
[1737913179737,0.06467135,3327.7,3327.6,0.7824]
[1737913180024,6.0047,3328.2,3327.6,3.78755]
[1737913180225,0.06467135,3327.7,3327.6,3.78755]
[1737913180429,3.00472,3328.1,3327.6,3.78755]
[1737913181224,3.0,3328.2,3327.6,3.78755]
[1737913181225,0.06467135,3328.0,3327.6,0.7824]
[1737913181526,0.06467135,3328.0,3326.7,0.5874679]
[1737913181527,3.00428,3328.6,3328.0,3.00476]
[1737913181832,0.005,3329.1,3328.7,0.8061]
[1737913181984,0.005,3329.1,3328.7,3.8102]
[1737913182193,0.005,3329.1,3328.9,3.00391]
[1737913186627,0.005,3329.1,3329.0,3.81]
[1737913189217,0.005,3329.1,3329.0,0.8061]
[1737913190933,0.005,3329.1,3328.8,3.00404]
[1737913191229,0.005,3329.1,3328.7,0.817]
[1737913191902,3.00391,3329.0,3328.3,6.0045]
[1737913192102,3.00391,3329.0,3328.4,0.817]
[1737913192809,3.00391,3329.0,3328.4,3.82143]
[1737913193147,0.005,3329.1,3328.4,3.82143]
[1737913193648,0.06357905,3329.0,3328.6,3.0042]
[1737913193844,0.06357905,3329.0,3328.5,0.11475185]
[1737913194148,0.7819,3328.9,3328.5,0.11475185]
[1737913194644,0.06357905,3328.8,3328.3,3.00451]
[1737913195659,0.06357905,3328.8,3328.2,3.00459]
[1737913196015,0.06357905,3328.8,3328.3,3.00445]
[1737913196219,0.06357905,3328.8,3328.4,3.00444]
[1737913196549,0.06252432,3328.8,3328.4,3.00444]
[1737913196855,3.00882,3329.1,3328.4,3.00444]
[1737913197043,0.06252432,3329.0,3328.4,3.00444]
[1737913198059,0.06252432,3328.9,3328.4,3.00444]
[1737913198243,0.005,3329.1,3328.4,3.00444]
[1737913198557,3.06642432,3329.0,3328.4,3.00444]
[1737913198858,0.7819,3328.9,3328.2,3.00459]
[1737913199227,0.06252432,3328.8,3328.3,3.00448]
[1737913199924,3.06664432,3328.8,3328.1,0.817]
[1737913200127,3.00428,3328.6,3328.1,0.817]
[1737913200452,0.06233389,3328.5,3328.0,3.00475]
[1737913200965,0.06233389,3328.5,3328.1,3.00469]
[1737913201326,3.00412,3328.8,3328.1,3.00469]
[1737913201523,0.06233389,3328.4,3328.1,3.00469]
[1737913201728,3.00412,3328.8,3328.1,3.00469]
[1737913201928,0.06233389,3328.3,3328.2,3.11946557]
[1737913202128,0.7819,3328.9,3328.3,1.3534]
[1737913202366,0.7819,3328.9,3328.4,3.00436]
[1737913202559,0.005,3329.1,3328.4,3.00436]
[1737913202741,0.005,3329.1,3328.8,3.00407]
[1737913203065,0.005,3329.1,3328.9,3.00398]
[1737913203274,0.005,3329.1,3328.8,3.80747]
[1737913203275,0.005,3329.1,3329.0,3.0039]
[1737913203829,0.06722422,3329.1,3329.0,3.0039]
[1737913205474,0.06722422,3329.1,3329.0,7.3573]
[1737913205672,0.005,3329.1,3329.0,7.3573]
[1737913205839,0.005,3329.1,3329.0,7.47217564]
[1737913216257,0.005,3329.1,3329.0,3.92217564]
[1737913216460,0.005,3329.1,3329.0,4.50220933]
[1737913217069,0.005,3329.1,3329.0,4.47217564]
[1737913217570,0.005,3329.1,3329.0,4.45447564]
[1737913218271,0.005,3329.1,3329.0,7.48450719]
[1737913218472,0.005,3329.1,3329.0,7.45447564]
[1737913221106,0.005,3329.1,3329.0,7.3396]
[1737913223604,0.005,3329.1,3329.0,7.45457665]
[1737913227893,0.005,3329.1,3329.0,11.45457665]
[1737913230714,0.005,3329.1,3329.0,7.45457665]
[1737913232218,0.005,3329.1,3329.0,3.66887665]
[1737913232807,0.005,3329.1,3329.0,3.89182817]
[1737913233826,0.005,3329.1,3329.0,3.34182817]
[1737913234291,0.005,3329.1,3329.0,3.89182817]
[1737913237988,0.8378,3329.1,3329.0,3.89182817]
[1737913238204,0.005,3329.1,3329.0,3.89182817]
[1737913239495,0.005,3329.1,3329.0,4.71172817]
[1737913241128,0.005,3329.1,3329.0,3.89182817]
[1737913242592,0.005,3329.1,3329.0,4.66962817]
[1737913243926,0.005,3329.1,3329.0,4.69965907]
[1737913244129,0.005,3329.1,3329.0,4.66962817]
[1737913246762,0.005,3329.1,3329.0,7.66962817]
[1737913249163,0.005,3329.1,3329.0,6.89182817]
[1737913249459,0.005,3329.1,3329.0,3.34182817]
[1737913249956,0.06860621,3329.1,3329.0,3.34182817]
[1737913250160,0.06860621,3329.1,3329.0,3.89182817]
[1737913251062,0.06860621,3329.1,3329.0,0.88792817]
[1737913252659,0.06860621,3329.1,3329.0,0.33792817]
[1737913252955,0.82640621,3329.1,3329.0,0.33792817]
[1737913253859,0.82640621,3329.1,3329.0,0.22295152]
[1737913255033,3.83021621,3329.1,3329.0,0.22295152]
[1737913255356,0.82640621,3329.1,3329.0,0.22295152]
[1737913257471,0.06860621,3329.1,3329.0,3.77685152]
[1737913257768,0.005,3329.1,3329.0,3.80688666]
[1737913258963,0.06803523,3329.1,3329.0,3.80688666]
[1737913259140,0.005,3329.1,3329.0,3.80688666]
[1737913259545,0.005,3329.1,3329.0,3.77685152]
[1737913259734,0.0681679,3329.1,3329.0,3.77685152]
[1737913267258,0.005,3329.1,3329.0,3.77685152]
[1737913267853,0.005,3329.1,3329.0,3.89211197]
[1737913269380,0.06815059,3329.1,3329.0,3.89211197]
[1737913273953,0.89225059,3329.1,3329.0,0.88821197]
[1737913276195,0.89225059,3329.1,3329.0,0.33821197]
[1737913277203,3.89606059,3329.1,3329.0,0.33821197]
[1737913278289,4.58603265,3329.1,3329.0,0.33821197]
[1737913278470,7.58603265,3329.1,3329.0,0.33821197]
[1737913279401,7.58603265,3329.1,3329.0,0.22295152]
[1737913279701,0.8241,3329.0,3328.2,0.55]
[1737913280008,0.8241,3328.7,3328.2,0.55]
[1737913280376,0.8241,3328.7,3328.3,0.11533706]
[1737913280580,0.06306408,3328.6,3328.3,0.11533706]
[1737913281106,0.06306408,3328.6,3328.4,3.55443]
[1737913281305,0.06306408,3328.6,3328.5,3.55435]
[1737913281469,0.8291,3329.1,3328.7,3.00413]
[1737913281671,0.8291,3329.1,3328.8,3.00408]
[1737913281904,0.0623083,3329.0,3328.8,3.00408]
[1737913282879,0.0623083,3329.0,3328.9,0.11533706]
[1737913297425,0.0623083,3329.0,3328.9,3.11932706]
[1737913297608,0.0623083,3329.0,3328.9,3.14936351]
[1737913297819,0.0623083,3329.0,3328.9,3.11932706]
[1737913298660,0.0623083,3329.0,3328.9,3.14936352]
[1737913299461,0.0623083,3329.0,3328.9,3.11932706]
[1737913302111,0.0623083,3329.0,3328.9,3.1493635]
[1737913303171,0.0623083,3329.0,3328.9,3.11932706]
[1737913304003,0.0623083,3329.0,3328.9,0.11533706]
[1737913304497,0.0623083,3329.0,3328.9,3.11932706]
[1737913304999,0.8768083,3329.0,3328.9,0.11533706]
[1737913305878,3.8807083,3329.0,3328.9,0.11533706]
[1737913306077,4.56966813,3329.0,3328.9,0.11533706]
[1737913306399,1.56576813,3329.0,3328.9,0.11533706]
[1737913306601,0.8768083,3329.0,3328.9,0.11533706]
[1737913309269,3.8807083,3329.0,3328.9,0.11533706]
[1737913311275,0.8768083,3329.0,3328.9,0.11533706]
[1737913311671,6.8807083,3329.0,3328.9,0.11533706]
[1737913317004,3.0041,3328.8,3328.1,3.00469]
[1737913317176,0.81921407,3328.7,3328.2,3.0046]
[1737913318124,0.81921407,3328.7,3328.3,0.11533949]
[1737913318810,0.81921407,3328.7,3328.4,0.11533949]
[1737913319830,0.81921407,3328.7,3328.5,0.11533949]
[1737913320859,0.81921407,3328.7,3328.6,0.11533949]
[1737913328046,0.06231407,3328.7,3328.6,3.66959949]
[1737913328250,0.06231407,3328.7,3328.6,3.69963823]
[1737913328447,0.005,3329.1,3328.6,3.69963823]
[1737913328752,0.005,3329.1,3328.8,3.00407]
[1737913328917,0.06216978,3329.0,3328.8,3.00407]
[1737913329428,0.06216978,3329.0,3328.6,3.66959949]
[1737913330248,0.06216978,3329.0,3328.7,0.11533949]
[1737913331425,0.06216978,3329.0,3328.8,3.11941949]
[1737913332922,0.06216978,3329.0,3328.9,0.11533949]
[1737913335928,0.06216978,3329.0,3328.9,4.46822949]
[1737913339652,0.005,3329.1,3329.0,3.5539]
[1737913340447,0.005,3329.1,3329.0,3.66923949]
[1737913341424,0.005,3329.1,3329.0,4.46813949]
[1737913343980,0.005,3329.1,3329.0,7.46813949]
[1737913344426,0.302397,3330.0,3329.9,4.34709]
[1737913345463,0.302397,3330.0,3329.9,7.34709]
[1737913345863,0.302397,3330.0,3329.9,7.46242949]
[1737913346739,0.302397,3330.0,3329.9,8.07734284]
[1737913356069,0.302397,3330.0,3329.9,7.52734284]
[1737913356474,0.302397,3330.0,3329.9,8.07734284]
[1737913357963,0.302397,3330.0,3329.9,12.07734284]
[1737913362993,0.302397,3330.0,3329.9,8.07734284]
[1737913365789,0.005,3330.1,3330.0,4.3723]
[1737913365996,0.005,3330.1,3330.0,7.3753]
[1737913366999,0.005,3330.1,3330.0,11.49063949]
[1737913368120,0.005,3330.1,3330.0,7.19063949]
[1737913370901,0.005,3330.1,3330.0,10.74063949]
[1737913371936,0.005,3330.1,3330.0,7.11833949]
[1737913373147,0.005,3330.1,3330.0,3.66833949]
[1737913386901,0.005,3330.1,3330.0,3.6983619]
[1737913387999,0.005,3330.1,3330.0,3.66833949]
[1737913390467,0.005,3330.1,3330.0,3.69836414]
[1737913390667,0.005,3330.1,3330.0,3.66833949]
[1737913392006,0.005,3330.1,3330.0,3.69836428]
[1737913392206,0.005,3330.1,3330.0,4.50026428]
[1737913393203,0.005,3330.1,3330.0,4.47023949]
[1737913394512,0.005,3330.1,3330.0,4.50026147]
[1737913394812,0.005,3330.1,3330.0,4.47023949]
[1737913397712,0.005,3330.1,3330.0,4.50026175]
[1737913398110,0.005,3330.1,3330.0,4.47023949]
[1737913398422,0.005,3330.1,3330.0,4.50026162]
[1737913400044,0.005,3330.1,3330.0,3.66833949]
[1737913422785,0.7883,3330.1,3330.0,3.66833949]
[1737913423938,0.005,3330.1,3330.0,3.66833949]
[1737913425375,0.005,3330.1,3330.0,3.69836351]
[1737913425870,0.005,3330.1,3330.0,4.45246351]
[1737913426038,0.005,3330.1,3330.0,7.45246351]
[1737913426373,0.005,3330.1,3330.0,7.42243949]
[1737913428374,0.005,3330.1,3330.0,7.67283949]
[1737913429446,0.005,3330.1,3330.0,11.67283949]
[1737913433414,0.005,3330.1,3330.0,10.91873949]
[1737913436275,0.005,3330.1,3330.0,6.91873949]
[1737913436606,0.00776056,3330.1,3330.0,6.91873949]
[1737913440706,0.00776056,3330.1,3330.0,3.91873949]
[1737913441007,0.00776056,3330.1,3330.0,7.91873949]
[1737913441382,0.81026056,3330.1,3330.0,3.36873949]
[1737913441783,0.81026056,3330.1,3330.0,0.36573949]
[1737913441991,0.87236018,3330.1,3330.0,0.36573949]
[1737913444523,3.07277018,3330.1,3329.3,3.00356]
[1737913444806,3.0,3329.6,3329.2,0.31253364]
[1737913445007,0.8025,3329.5,3329.3,3.00355]
[1737913445177,0.86459962,3329.5,3329.3,3.00355]
[1737913445377,0.86459962,3329.5,3329.4,3.00354]
[1737913446495,0.86459962,3329.5,3329.2,0.55]
[1737913446496,0.86459962,3329.5,3329.2,3.55369]
[1737913448414,0.86459962,3329.5,3329.3,3.0036]
[1737913449314,0.86459962,3329.5,3329.4,3.00354]
[1737913449474,0.86459962,3329.5,3329.4,3.55354]
[1737913452122,0.86459962,3329.5,3329.4,0.55]
[1737913454826,0.86459962,3329.5,3329.1,3.00381]
[1737913454988,1.25138758,3329.5,3329.1,3.00381]
[1737913455638,0.7867,3329.4,3328.9,3.00396]
[1737913455806,0.84743766,3329.4,3328.9,3.00396]
[1737913457551,0.84743766,3329.4,3329.0,3.55387]
[1737913458159,0.84743766,3329.4,3329.0,3.66957145]
[1737913458449,0.84743766,3329.4,3329.0,3.66958145]
[1737913459038,0.84743766,3329.4,3329.1,0.11570145]
[1737913459950,0.84743766,3329.4,3329.1,3.11948145]
[1737913460155,0.84743766,3329.4,3329.2,3.11941145]
[1737913461252,0.84743766,3329.4,3329.3,0.11570145]
[1737913464077,0.85019822,3329.4,3329.3,0.11570145]
[1737913465356,0.85019822,3329.4,3329.3,3.11933145]
[1737913470528,0.85019822,3329.4,3329.3,0.11570145]
[1737913471959,1.23555804,3329.4,3329.3,0.11570145]
[1737913472564,4.23909804,3329.4,3329.3,0.11570145]
[1737913474127,7.23909804,3329.4,3329.3,0.11570145]
[1737913476337,3.00391,3329.0,3328.4,3.00442]
[1737913476538,0.769,3328.9,3328.4,3.00442]
[1737913476743,0.82935078,3328.9,3328.4,3.00442]
[1737913477341,0.82935078,3328.9,3328.4,6.0088]
[1737913477865,0.82935078,3328.9,3328.4,3.00438]
[1737913479170,0.82935078,3328.9,3328.5,3.00434]
[1737913480526,0.82935078,3328.9,3328.4,3.00438]
[1737913480726,0.06035078,3328.9,3328.7,3.0041]
[1737913480931,0.06035078,3328.9,3328.8,3.00408]
[1737913481233,0.06021794,3328.9,3328.8,3.00408]
[1737913481431,0.769,3329.2,3328.9,3.00395]
[1737913481631,0.06024682,3329.1,3328.9,3.00395]
[1737913482198,0.06024682,3329.1,3329.0,3.0039]
[1737913483246,0.82906056,3329.4,3329.1,3.00376]
[1737913485377,1.45575895,3329.4,3329.1,3.00376]
[1737913487550,0.82906056,3329.4,3329.1,3.00376]
[1737913490079,0.82906056,3329.4,3329.2,3.00369]
[1737913490377,0.00276056,3329.4,3329.2,3.00369]
[1737913491077,0.00276056,3329.4,3329.2,0.55]
[1737913491245,0.00276056,3329.4,3329.3,3.00363]
[1737913493463,0.06295544,3329.4,3329.3,3.00363]
[1737913495179,0.06295544,3329.4,3329.2,0.55]
[1737913495541,0.06295544,3329.4,3329.2,3.5537]
[1737913495746,0.06295544,3329.4,3329.3,3.00363]
[1737913502082,0.06295544,3329.4,3329.3,3.55363]
[1737913502780,0.06295544,3329.4,3329.3,4.34783]
[1737913503282,0.00276056,3329.4,3329.3,4.34783]
[1737913505575,0.00276056,3329.4,3329.3,4.94508342]
[1737913506165,0.00276056,3329.4,3329.3,4.34783]
[1737913507163,0.00276056,3329.4,3329.3,4.377862]
[1737913508365,0.00276056,3329.4,3329.3,7.377862]
[1737913508577,0.00276056,3329.4,3329.3,7.54183]
[1737913509104,0.00276056,3329.4,3329.3,11.74183]
[1737913509105,5.6e-07,3329.4,3329.3,11.74183]
[1737913509298,0.005,3330.1,3330.0,4.3464]
[1737913509500,0.005,3330.1,3330.0,7.3464]
[1737913511510,1e-05,3330.1,3330.0,7.3464]
[1737913512585,0.1769619,3330.8,3330.2,0.7934]
[1737913512789,0.1769619,3330.8,3330.7,3.55237]
[1737913512972,0.1769619,3330.8,3330.7,4.34577]
[1737913514684,0.1769619,3330.8,3330.7,3.55237]
[1737913515086,0.23894613,3330.8,3330.7,3.55237]
[1737913516107,0.1769619,3330.8,3330.7,3.55237]
[1737913518491,0.23889421,3330.8,3330.7,3.55237]
[1737913521479,0.1769619,3330.8,3330.7,3.55237]
[1737913523283,0.23925191,3330.8,3330.7,3.55237]
[1737913524117,0.23925191,3330.8,3330.7,3.00237]
[1737913530823,0.23925191,3330.8,3330.7,3.55237]
[1737913531017,0.1769619,3330.8,3330.7,3.55237]
[1737913537215,0.00105607,3333.3,3331.0,0.55]
[1737913537525,0.00105607,3333.3,3332.1,0.8013]
[1737913537526,0.60691038,3333.0,3332.1,0.8013]
[1737913537699,0.60691038,3333.0,3332.7,3.0005]
[1737913537903,0.00105607,3333.3,3332.9,3.00039]
[1737913538223,0.05866843,3333.2,3332.9,3.00039]
[1737913538448,0.05866843,3333.2,3332.9,2.95039]
[1737913538641,0.00105607,3333.3,3332.9,2.95039]
[1737913538816,0.05700176,3333.2,3332.9,2.95039]
[1737913539011,0.00105607,3333.3,3332.9,2.95039]
[1737913539210,0.00105607,3333.3,3333.0,0.55]
[1737913539437,0.05700176,3333.2,3333.1,3.00021]
[1737913539636,0.00105607,3333.3,3333.1,3.00021]
[1737913540018,0.05700176,3333.2,3333.1,3.00021]
[1737913540405,0.00105607,3333.3,3333.2,3.55012]
[1737913541031,0.00105607,3333.3,3333.2,4.35142]
[1737913541524,0.00105607,3333.3,3333.2,3.55012]
[1737913541840,0.00105607,3333.3,3333.2,3.66494895]
[1737913544837,0.00105607,3333.3,3333.2,0.66482895]
[1737913545943,0.00105607,3333.3,3333.2,3.66494895]
[1737913546144,0.0609683,3333.3,3333.2,3.66494895]
[1737913546349,0.00105607,3333.3,3333.2,3.66494895]
[1737913546518,0.0609683,3333.3,3333.2,0.66482895]
[1737913546846,0.00105607,3333.3,3333.2,0.66482895]
[1737913547820,0.0609683,3333.3,3333.2,0.66482895]
[1737913548650,0.0609683,3333.3,3333.2,0.11482895]
[1737913548951,1.16145613,3333.3,3333.2,0.11482895]
[1737913549451,1.16145613,3333.3,3333.0,0.55]
[1737913549636,0.8553683,3333.3,3333.0,0.55]
[1737913549832,0.8553683,3333.3,3332.8,0.55]
[1737913550348,0.8553683,3333.3,3332.8,1.15619515]
[1737913550848,0.8553683,3333.3,3333.0,0.55]
[1737913551049,0.8553683,3333.3,3332.9,0.11431657]
[1737913551050,3.0002,3333.2,3332.9,0.11431657]
[1737913551344,3.7947,3333.0,3332.9,0.11431657]
[1737913551912,3.8544049,3333.0,3332.9,0.11431657]
[1737913552309,3.00048,3332.8,3332.3,0.55]
[1737913553139,0.0597049,3332.7,3332.3,0.55]
[1737913553338,3.00048,3332.8,3332.3,0.55]
[1737913553548,0.0597049,3332.6,3332.3,0.55]
[1737913553714,3.00057,3332.7,3332.1,0.55]
[1737913553917,0.0597049,3332.5,3332.1,0.55]
[1737913554152,3.00057,3332.7,3332.2,0.55]
[1737913554350,0.0597049,3332.4,3332.2,0.55]
[1737913554648,3.00057,3332.7,3332.2,0.55]
[1737913554858,0.0597049,3332.3,3332.2,0.55]
[1737913555148,3.00057,3332.7,3332.2,0.55]
[1737913555149,0.0597049,3332.6,3332.2,0.55]
[1737913555451,0.7944,3332.5,3332.2,0.55]
[1737913555748,0.8541049,3332.5,3332.2,0.55]
[1737913556854,0.8541049,3332.5,3332.4,0.55]
[1737913557288,3.00084,3332.4,3332.3,0.11455023]
[1737913557756,3.06008983,3332.4,3332.3,0.11455023]
[1737913558254,3.06008983,3332.4,3332.1,0.55]
[1737913559460,3.06008983,3332.4,3331.9,0.55]
[1737913562459,3.06008983,3332.4,3332.1,0.55]
[1737913562657,3.00094,3332.3,3332.1,0.55]
[1737913562967,0.05893874,3332.2,3332.1,0.55]
[1737913563332,3.00094,3332.3,3331.8,0.55]
[1737913563533,0.05893874,3332.2,3331.8,0.55]
[1737913563733,3.00094,3332.3,3331.8,0.55]
[1737913563955,0.05893874,3332.2,3331.8,0.55]
[1737913564230,0.80835607,3333.3,3333.1,0.55]
[1737913564455,0.00105607,3333.3,3333.1,0.55]
[1737913564799,0.00105607,3333.3,3333.1,3.55014]
[1737913565331,0.00105607,3333.3,3333.2,0.66488903]
[1737913567674,0.00105607,3333.3,3333.2,3.66500903]
[1737913568382,0.05684788,3333.3,3333.2,3.66500903]
[1737913568589,0.00105607,3333.3,3333.2,3.66500903]
[1737913569875,0.00105607,3333.3,3333.2,4.45870903]
[1737913570084,0.05684788,3333.3,3333.2,4.48870147]
[1737913570262,0.00105607,3333.3,3333.2,4.45870903]
[1737913571002,0.1769619,3337.4,3335.9,3.79139]
[1737913571199,0.1769619,3337.4,3335.9,0.82367]
[1737913571403,0.1769619,3337.4,3336.8,2.99679]
[1737913571698,0.05385083,3337.3,3336.2,0.02996747]
[1737913571907,0.05385083,3337.3,3336.2,0.24096747]
[1737913572203,0.05372369,3337.2,3337.1,2.9966]
[1737913572345,0.05372369,3337.2,3337.1,3.5466]
[1737913572541,0.765,3337.3,3335.8,2.99773]
[1737913572763,0.765,3337.3,3336.5,2.99713]
[1737913572976,3.05566222,3337.2,3336.3,3.38683241]
[1737913573171,0.69940541,3337.1,3336.4,0.55]
[1737913573379,2.9968,3336.9,3336.4,0.55]
[1737913573605,0.05566222,3336.8,3336.4,0.55]
[1737913574348,5.99678,3337.0,3336.4,0.55]
[1737913574549,2.99708,3336.6,3336.3,0.27462338]
[1737913574805,2.99708,3336.6,3334.0,0.3]
[1737913574806,2.99769,3335.9,3335.1,2.99836]
[1737913575095,3.0,3336.0,3334.9,2.99855]
[1737913575401,0.05530482,3335.9,3335.1,0.55]
[1737913575580,3.05301482,3335.9,3334.8,2.99866]
[1737913575983,0.05530482,3335.9,3335.1,3.0]
[1737913576143,3.96927154,3336.9,3335.8,0.55]
[1737913576144,0.765,3336.7,3335.8,0.55]
[1737913576346,0.05530482,3336.6,3335.8,3.54776]
[1737913576603,0.38173148,3336.5,3335.8,3.54776]
[1737913577095,0.05648229,3336.4,3335.8,3.54776]
[1737913577261,0.05648229,3336.4,3335.4,0.7937]
[1737913577262,0.05648229,3336.4,3336.2,2.99734]
[1737913577465,0.05648229,3336.4,3336.1,0.55]
[1737913577849,2.99692,3336.8,3335.7,2.9978]
[1737913578086,0.05649959,3336.3,3335.8,2.99769]
[1737913578283,2.99708,3336.6,3335.8,0.55]
[1737913578502,0.05709349,3336.2,3335.8,0.55]
[1737913578711,2.99749,3336.2,3335.4,3.79181]
[1737913579004,0.05709349,3336.1,3335.5,0.55]
[1737913579164,0.05709349,3336.1,3335.5,3.54804]
[1737913579371,3.76235,3336.3,3335.5,3.54804]
[1737913579570,3.05447432,3336.2,3335.5,3.54804]
[1737913580498,3.05447432,3336.2,3335.5,0.55]
[1737913580808,2.99753,3336.1,3335.4,0.55]
[1737913580958,2.99753,3336.1,3335.4,3.54812]
[1737913581404,0.05691476,3336.0,3335.4,3.54812]
[1737913582780,0.05691476,3336.0,3335.2,2.99831]
[1737913582781,0.05691476,3336.0,3335.6,0.55]
[1737913582999,4.43831,3336.3,3335.6,0.55]
[1737913583180,0.743555,3336.2,3335.6,0.55]
[1737913583380,0.05688592,3336.1,3335.6,0.55]
[1737913584782,0.05688592,3336.1,3335.6,3.54795]
[1737913588776,0.743555,3336.2,3335.6,3.54795]
[1737913588971,0.05290951,3336.1,3335.6,3.54795]
[1737913590598,0.05290951,3336.1,3335.5,0.55]
[1737913590804,0.05290951,3336.1,3335.8,0.55]
[1737913593107,0.05290951,3336.1,3336.0,3.5476]
[1737913593596,0.8194,3337.1,3336.3,3.54725]
[1737913593811,0.43442747,3337.0,3336.5,0.55]
[1737913594170,0.43442747,3337.0,3336.5,3.54712]
[1737913594781,0.43442747,3337.0,3336.5,0.55]
[1737913595112,0.43442747,3337.0,3336.6,0.55]
[1737913595673,3.43113747,3337.0,3336.3,3.54729]
[1737913595867,0.42504375,3336.9,3336.3,3.54729]
[1737913596072,0.42504375,3336.9,3336.0,0.55]
[1737913596275,0.05338276,3336.8,3336.3,0.55]
[1737913596473,0.05338276,3336.8,3336.5,0.55]
[1737913596687,0.00338276,3336.8,3336.5,0.55]
[1737913596902,0.0517161,3336.8,3336.5,0.55]
[1737913597207,0.48099509,3336.8,3336.3,0.55]
[1737913597505,0.42927899,3336.8,3336.3,3.54732]
[1737913597911,0.42927899,3336.8,3336.5,0.55]
[1737913598369,0.05168724,3336.7,3336.5,0.55]
[1737913598570,0.42927899,3336.8,3336.5,0.55]
[1737913598804,2.99706,3336.6,3336.5,0.55]
[1737913598980,0.3426089,3336.7,3336.5,0.55]
[1737913599185,0.3426089,3336.7,3336.6,0.11434662]
[1737913600382,0.3426089,3336.7,3336.6,0.66434662]
[1737913600611,0.42927899,3336.8,3336.7,0.55]
[1737913601105,0.42927899,3336.8,3336.7,0.66434662]
[1737913601616,2.99671,3337.0,3336.7,0.66434662]
[1737913601990,2.99671,3337.0,3336.7,0.94102713]
[1737913602192,0.8194,3337.1,3336.7,0.94102713]
[1737913602391,0.8194,3337.1,3336.8,0.11434662]
[1737913602906,3.81602,3337.1,3336.8,0.11434662]
[1737913603109,0.681247,3337.0,3336.8,0.11434662]
[1737913603618,0.681247,3337.0,3336.9,0.39102713]
[1737913604199,0.73285345,3337.0,3336.9,0.39102713]
[1737913604823,3.72955345,3337.0,3336.9,0.39102713]
[1737913605323,3.72955345,3337.0,3336.9,0.94102713]
[1737913605324,0.73285345,3337.0,3336.9,0.94102713]
[1737913606518,3.72955345,3337.0,3336.9,0.39102713]
[1737913607432,7.53455345,3337.0,3336.9,0.39102713]
[1737913608220,7.53455345,3337.0,3336.9,0.11434662]
[1737913609208,2.99731,3336.4,3335.9,0.55]
[1737913609409,2.99743,3336.2,3335.9,0.55]
[1737913609707,2.99748,3336.2,3335.8,0.391374]
[1737913609903,0.05144484,3336.1,3335.8,0.391374]
[1737913610108,3.04895484,3336.1,3335.8,0.391374]
[1737913610308,2.99751,3336.1,3335.8,0.391374]
[1737913610506,0.05117358,3336.0,3335.8,0.27702738]
[1737913610916,2.99769,3335.9,3335.8,0.27702738]
[1737913611109,0.05117358,3336.0,3335.8,0.27702738]
[1737913611310,3.77194,3336.3,3335.9,0.27702738]
[1737913613031,3.77194,3336.3,3336.0,0.27702738]
[1737913613211,3.374634,3336.2,3336.0,0.27702738]
[1737913613395,0.05110431,3336.1,3336.0,0.27702738]
[1737913616633,0.05110431,3336.1,3336.0,0.82702738]
[1737913616836,3.8206,3336.6,3336.1,0.55]
[1737913617031,0.05102351,3336.5,3336.1,0.55]
[1737913617232,1.03759386,3336.5,3336.1,0.55]
[1737913618299,1.03759386,3336.5,3336.3,0.55]
[1737913619736,1.03759386,3336.5,3336.4,0.27702738]
[1737913620939,4.03474386,3336.5,3336.4,0.27702738]
[1737913622214,0.1769619,3337.4,3336.6,0.7557]
[1737913622415,0.1769619,3337.4,3337.3,4.30213]
[1737913624425,0.1769619,3337.4,3337.3,4.57915738]
[1737913625345,0.1769619,3337.4,3337.3,1.58272738]
[1737913625548,0.1769619,3337.4,3337.3,0.82702738]
[1737913625857,0.2214581,3337.4,3337.3,0.82483567]
[1737913626729,0.54322591,3337.4,3337.3,0.82483567]
[1737913627421,0.2214581,3337.4,3337.3,0.54780829]
[1737913627621,0.1769619,3337.4,3337.3,0.54780829]
[1737913627852,0.2214581,3337.4,3337.3,0.54780829]
[1737913628160,4.0546581,3337.4,3336.4,2.99718]
[1737913628347,0.2214581,3337.4,3337.3,3.82093]
[1737913628859,0.1769619,3337.4,3337.3,4.37093]
[1737913630362,0.1769619,3337.4,3337.3,4.64652089]
[1737913631861,0.1769619,3337.4,3337.3,3.82202089]
[1737913632266,0.2212401,3337.4,3337.3,3.82202089]
[1737913632958,0.2212401,3337.4,3337.3,1.10009089]
[1737913633161,0.2212401,3337.4,3337.3,4.09652089]
[1737913633460,0.1769619,3337.4,3337.3,4.64652089]
[1737913634250,0.1769619,3337.4,3337.3,0.82559089]
[1737913634465,0.1769619,3337.4,3337.3,3.82202089]
[1737913634631,0.1769619,3337.4,3337.3,4.67648281]
[1737913634832,0.1769619,3337.4,3337.3,4.64652089]
[1737913635071,0.1769619,3337.4,3337.3,4.37093]
[1737913637367,0.1769619,3337.4,3337.3,4.96209606]
[1737913637564,0.1769619,3337.4,3337.3,4.99205311]
[1737913638335,0.0008,3339.2,3338.5,2.99535]
[1737913638553,0.0008,3339.2,3337.8,0.22]
[1737913638756,0.04466285,3339.1,3338.9,2.99499]
[1737913638959,0.0008,3339.2,3338.7,3.81965]
[1737913638960,0.834,3339.2,3338.7,2.99515]
[1737913639144,0.04474365,3339.0,3338.5,2.99534]